Cogmind - Beta 17.1 @@@ ROGUE MODE // 2026.09.20 @ 20:00:58 Player: Caluan Result: Destroyed by S-10 Pest with Light Assault Rifle Performance ------------- Evolutions (0) 0 Regions Visited (2) 400 Robots Destroyed (25) 125 Value Destroyed (494) 494 Prototype IDs (0) 0 Alien Tech Used (0) 0 Bonus (0) 0 TOTAL SCORE: 1019 Bonus ------- None Cogmind --------- Core Integrity 0/250 Matter 300/300 Energy 246/250 System Corruption 2% Temperature Cool (0) Movement Treading (160) Location -10/Mines Parts ------- > --- POWER (1) -------- Ion Engine > --- PROPULSION (2) --- Light Treads Light Treads > --- UTILITY (2) ------ Large Storage Unit Salvage Targeting Computer > --- WEAPON (2) ------- Mining Claw > --- INVENTORY (15) --- Light Treads Light Treads Wheel Improved Heat Sink High-capacity Storage Unit High-capacity Storage Unit High-capacity Battery (250) High-capacity Matter Pod (200) Salvage Targeting Computer Datajack Peak State ------------ > --- POWER ------------ Ion Engine > --- PROPULSION ------- Light Treads Light Treads > --- UTILITY ---------- Large Storage Unit Salvage Targeting Computer > --- WEAPON ----------- Medium Laser Medium Laser > --- INVENTORY -------- Ion Engine Light Treads Light Treads Wheel Improved Heat Sink High-capacity Storage Unit High-capacity Storage Unit High-capacity Battery High-capacity Matter Pod Salvage Targeting Computer Datajack Mining Claw [Rating: 9] Favorites ----------- Power Ion Engine Engine Ion Engine Propulsion Light Treads Treads Light Treads Utility Large Storage Unit Storage Large Storage Unit Processor Salvage Targeting Computer Weapon Medium Laser Energy Gun Medium Laser Ballistic Gun Assault Rifle Slashing Weapon Mining Claw Build | -11 -10 -10 ------- Run | Yrd Mat Min Slots Evolved . | . . . Power . | . . . Propulsion . | . . . Utility . | . . . Weapon . | . . . Parts Attached 13 | 6 4 3 Power 2 | 1 . 1 Engine 2 | 1 . 1 Core . | . . . Reactor . | . . . Propulsion 4 | 2 1 1 Treads 4 | 2 1 1 Leg . | . . . Wheel . | . . . Hover . | . . . Flight . | . . . Utility 3 | 1 2 . Device . | . . . Storage 2 | 1 1 . Processor 1 | . 1 . Hackware . | . . . Protection . | . . . Artifact . | . . . Weapon 4 | 2 1 1 Energy Gun 2 | 1 1 . Energy Cannon . | . . . Ballistic Gun 1 | 1 . . Ballistic Cannon . | . . . Launcher . | . . . Special Weapon . | . . . Impact Weapon . | . . . Slashing Weapon 1 | . . 1 Piercing Weapon . | . . . Special Melee Weapon . | . . . Unidentified Prototypes . | . . . Parts Lost 6 | . 2 4 Power 1 | . . 1 Propulsion 2 | . 1 1 Utility . | . . . Weapon 3 | . 1 2 Highest Loss Streak 3 | . 2 3 To Critical Strikes . | . . . Average Backups 7 | 1 6 11 Power . | . 1 . Propulsion 1 | . 1 3 Utility 3 | . 2 6 Weapon . | . . . Tool/Special . | . . . Unused Backups 10 | . . 10 Power . | . . . Propulsion 3 | . . 3 Utility 6 | . . 6 Weapon . | . . . Tool/Special 1 | . . 1 Average Slot Usage (%) 87 | . 89 81 Engine 12 | . 14 7 Treads 23 | . 22 28 Storage 14 | . 14 14 Processor 10 | . 9 14 Energy Gun 19 | . 21 7 Ballistic Gun 5 | . 6 . Slashing Weapon 1 | . . 9 Peak Build Rating 9 | 6 9 9 Average Rating 7 | 4 7 7 On Entrance 5 | . 6 9 Avg Prop Armor Cover (%) . | . . . Naked Turns . | . . . Heaviest Build 29 | 14 29 27 Greatest Support 40 | 40 40 40 Greatest Overweight (x) 1 | . 1 . Average Overweight (x) . | . . . Largest Inventory Capacity 15 | 8 15 15 Average Capacity 14 | 6 14 15 Most Carried 13 | 4 13 13 Average Carried 7 | 1 6 11 Final Capacity 15 | 8 15 15 Final Carried 13 | 3 13 10 Class Distribution -------------------- 100% | Mutant Dominant Class ---------------- Mutant | -10/Materials Mutant | -10/Mines Resources | -11 -10 -10 ----------- Run | Yrd Mat Min Matter Collected 613 | 197 386 30 Remotely . | . . . Salvage Created 785 | 7 690 88 Parts 36 | 1 32 3 Haulers Intercepted 2 | . 2 . Recyclers Shooed . | . . . Parts Field Recycled . | . . . Retrieved Matter . | . . . Parts Self-Destructed . | . . . Prevented . | . . . Parts Restored . | . . . Kills | -11 -10 -10 ------- Run | Yrd Mat Min Combat Hostiles Destroyed 19 | . 13 6 Melee 1 | . . 1 Guns 18 | . 13 5 Classes Destroyed 5 | 1 4 . Worker 2 | 1 1 . Hauler 2 | . 2 . Operator 2 | . 2 . Swarmer 9 | . 3 6 Grunt 10 | . 10 . Best Kill Streak 3 | 1 3 2 Combat Bots Only 3 | . 3 2 Max Kills in Single Turn 2 | 1 2 1 Gunslinging . | . . . Exploded . | . . . Melee 1 | . . 1 Uniques/NPCs Destroyed . | . . . Combat | -11 -10 -10 -------- Run | Yrd Mat Min Hostile Shots Fired 155 | . 74 81 Missed 46 | . 22 24 Hits 109 | . 52 57 Projectile 109 | . 52 57 Critical Strikes 1 | . 1 . Damage Taken 1074 | . 629 445 Core 251 | . 131 120 Absorbed by Shields . | . . . Core Remaining (%) 100 | 100 . . Volleys Fired 94 | . 69 25 Largest 2 | . 2 2 Hottest 100 | . 100 100 Shots Fired 178 | . 142 36 Gun 178 | . 142 36 Cannon . | . . . Launcher . | . . . Special . | . . . Kinetic 32 | . 32 . Thermal 146 | . 110 36 Explosive . | . . . Electromagnetic . | . . . Robot Hit Streak 8 | . 8 4 Robot Miss Streak 7 | . 4 7 Penetration Max . | . . . Secondary Targets 3 | . 3 . Max Gunslinging Chain 1 | . 1 . Shots Hit Robots 105 | . 89 16 Core Hits 44 | 1 37 6 Critical Kills . | . . . Critical Parts Destroyed . | . . . Critical Strikes 9 | . 8 1 Burn 9 | . 8 1 Melee Attacks 8 | . . 8 Impact . | . . . Slashing 8 | . . 8 Piercing . | . . . Sneak Attacks . | . . . Combat Hostiles . | . . . Follow-up Attacks . | . . . Damage Inflicted 1437 | 3 1179 255 Guns 1364 | . 1161 203 Cannons . | . . . Explosions . | . . . Melee 46 | . . 46 Ramming 27 | 3 18 6 Kinetic 275 | . 275 . Thermal 1089 | . 886 203 Explosive . | . . . Electromagnetic . | . . . Impact . | . . . Slashing 46 | . . 46 Piercing . | . . . Highest Corruption 2 | . 2 2 Average Corruption 2 | . 2 2 Corruption Purged . | . . . Corruption Blocked . | . . . Effects 20 | . 17 3 Message Errors 5 | . 4 1 Matter Fused 3 | . 3 . Heat Flow Errors 2 | . 2 . Energy Discharges 2 | . 1 1 Data Loss (minor) 2 | . 1 1 Data Loss (major) 1 | . 1 . Misfires 4 | . 4 . Alerts 1 | . 1 . Overload Shots . | . . . Overflow Damage . | . . . Projectiles . | . . . Explosions . | . . . Melee . | . . . Knockbacks . | . . . Impact . | . . . Kinetic . | . . . Secondary . | . . . Self-Inflicted Damage . | . . . Shots . | . . . Rammed 8 | . 5 3 Targets Rammed 9 | 1 5 3 Kicked . | . . . Crushed 1 | 1 . . Highest Temperature 321 | . 321 263 Average Temperature 84 | . 80 106 Received Heat Transfer 306 | . 306 . Effects 2 | . . 2 Interference 2 | . . 2 Siege Activations . | . . . Martial Activations . | . . . Shielding Activations . | . . . Robots Disrupted . | . . . Combat Hostiles . | . . . Robots Corrupted . | . . . Combat Hostiles . | . . . Parts Fried . | . . . Impact Corruptions . | . . . Robots Melted . | . . . Combat Hostiles . | . . . Parts Melted 8 | . 6 2 Heat Transferred 3885 | . 3219 666 Parts Sabotaged . | . . . Parts Stolen . | . . . Parts Stripped . | . . . Power Chain Reactions . | . . . Alert | -11 -10 -10 ------- Run | Yrd Mat Min Maximum Alert Level . | . . . Low Security (%) 100 | 100 100 100 Level 1 . | . . . Level 2 . | . . . Level 3 . | . . . Level 4 . | . . . Level 5 . | . . . High Security . | . . . Max Security . | . . . Peak Influence 90 | . 90 60 Initial 3 | . 3 . Average 17 | . 18 17 Influence Increases 540 | 5 395 140 Destroy 0b10 Robot/C 380 | . 260 120 Destroy 0b10 Robot/NC 30 | 5 25 . Destroy Leader 94 | . 74 20 Successful Hack 5 | . 5 . Destroy Structure 1 | . 1 . Partial Spotted 15 | . 15 . Lose Combat Pursuer 15 | . 15 . Influence Decreases 540 | . 400 140 Entered New Map 2 | . 2 . Time Decay 478 | . 378 100 Lost Part 60 | . 20 40 Squads Dispatched 4 | . 4 . Investigation 1 | . 1 . Extermination . | . . . Reinforcement 3 | . 3 . Assault . | . . . Garrison . | . . . Intercept . | . . . Searches Triggered . | . . . Construction Impeded . | . . . Haulers Reinforced . | . . . Active Scanning Responses . | . . . Cargo Convoy Interrupts . | . . . Stealth | -11 -10 -10 --------- Run | Yrd Mat Min Distress Signals 3 | . 3 . Communications Jammed . | . . . Distress Signals . | . . . Times Spotted 36 | . 27 9 Peak Tracking Total 4 | . 4 3 Tactical Retreats 1 | . 1 . Traps | -11 -10 -10 ------- Run | Yrd Mat Min Traps Triggered 3 | . 3 . Indirectly . | . . . Trap Hack Attempts . | . . . Triggered . | . . . Disarmed . | . . . Reprogrammed . | . . . Reused . | . . . Traps Extracted . | . . . Installed . | . . . Triggered . | . . . Machines | -11 -10 -10 ---------- Run | Yrd Mat Min Machines Disabled . | . . . Max in Single Turn . | . . . Machines Repaired . | . . . Machines Dismantled . | . . . Machines Sabotaged . | . . . Overloaded Fab Kills . | . . . Hacking | -11 -10 -10 --------- Run | Yrd Mat Min Machines Accessed 5 | . 5 . Terminals 5 | . 5 . Fabricators . | . . . Repair Stations . | . . . Recycling Units . | . . . Scanalyzers . | . . . Garrison Access . | . . . Total Hacks 14 | . 14 . Successful 3 | . 3 . Failed 11 | . 11 . Catastrophic . | . . . Database Lockouts . | . . . Manual 14 | . 14 . Terminals 14 | . 14 . Fabricators . | . . . Repair Stations . | . . . Recycling Units . | . . . Scanalyzers . | . . . Garrison Access . | . . . Terminal Hacks . | . . . Fabricator Hacks . | . . . Repair Station Hacks . | . . . Recycling Unit Hacks . | . . . Scanalyzer . | . . . Garrison Access Hacks . | . . . Unauthorized Hacks 3 | . 3 . Terminals 3 | . 3 . Botnet 3 | . 3 . Fabricators . | . . . Repair Stations . | . . . Recycling Units . | . . . Scanalyzers . | . . . Garrison Access . | . . . Data Cores Recovered . | . . . Used . | . . . Hacking Detections 4 | . 4 . Full Trace Events . | . . . Feedback Events . | . . . Feedback Blocked . | . . . Robot Schematics Acquired . | . . . Robots Built . | . . . Authchips . | . . . Time . | . . . Total Robot Build Rating . | . . . Part Schematics Acquired . | . . . Parts Built . | . . . Authchips . | . . . Time . | . . . Total Part Build Rating . | . . . Part Studies Acquired . | . . . Parts Repaired . | . . . Time . | . . . Parts Recycled . | . . . Recycled Matter . | . . . Retrieved Matter . | . . . Retrieved Components . | . . . Parts Scanalyzed . | . . . Part Schematics Acquired . | . . . Parts Damaged . | . . . Bothacking | -11 -10 -10 ------------ Run | Yrd Mat Min Used RIF Installer . | . . . Robots Hacked . | . . . Non-combat . | . . . Combat . | . . . Robot Hacks Applied . | . . . Relay Couplers Released . | . . . Fabnet Peak Effective % . | . . . Robots Rewired . | . . . Allies Hacked . | . . . Hacks Repelled . | . . . Allies | -11 -10 -10 -------- Run | Yrd Mat Min Total Allies . | . . . Largest Group . | . . . Highest-Rated Group . | . . . Highest-Rated Ally . | . . . Total Orders . | . . . Ally Attacks . | . . . Total Damage . | . . . Kills . | . . . Allies Corrupted . | . . . Allies Melted . | . . . Intel | -11 -10 -10 ------- Run | Yrd Mat Min Active Infowar (turns) . | . . . Robot Analysis Total . | . . . Derelict Logs Recovered . | . . . Drone Launches . | . . . Drone Recoveries . | . . . Exploration | -11 -10 -10 ------------- Run | Yrd Mat Min Turns Passed 2294 | 103 1832 359 Spaces Moved 1058 | 59 835 164 Core 6 | 6 . . Treads 1052 | 53 835 164 Legs . | . . . Wheels . | . . . Hover . | . . . Flight . | . . . Fastest Speed 50 | 50 160 160 Average Speed 180 | 148 186 160 Slowest Speed 240 | 160 240 160 Overloaded Moves . | . . . Propulsion Burnouts . | . . . Robots Hopped . | . . . Potential Cave-ins . | . . . Cave-ins Triggered . | . . . Exploration Rate (%) 43 | 3 94 32 Regions Visited 2 Branch Regions 1 Pre-discovered Areas . | . . . Known Exits Taken . | . . . Unknown Exits Taken 2 | 1 1 . Scrap Searched 2 | . . 2 Spaces Dug . | . . . Terrain Destroyed . | . . . Melee . | . . . Projectile . | . . . AOE . | . . . Terrain Rammed . | . . . Walls Destroyed . | . . . Machines Disabled . | . . . Actions | -11 -10 -10 --------- Run | Yrd Mat Min Total 1248 | 74 965 209 Wait 45 | . 39 6 Move 1057 | 59 834 164 Hop . | . . . Pick Up 22 | 9 13 . Fast Attach 1 | . 1 . Attach 12 | 6 3 3 Detach . | . . . Swap . | . . . Drop 1 | . 1 . Fire 94 | . 69 25 Melee 8 | . . 8 Ram . | . . . Kick . | . . . Crush 8 | . 5 3 Escape Stasis . | . . . Rewire . | . . . Trap . | . . . Miscellaneous . | . . . Route ------- -11/Scrapyard -10/Materials (discovered 5 exits: [*Mat x3] / [*Min x2]) -10/Mines History --------- Turn | Location | Event 9 | -11/Scrapyard | Discovered new exit (range 15) 104 | -11/Scrapyard | Entered Materials 316 | -10/Materials | Build established: Mutant 431 | -10/Materials | Discovered new exit (range 5) 609 | -10/Materials | Discovered new exit (range 16) 856 | -10/Materials | Discovered new exit (range 15) 1031 | -10/Materials | Discovered new exit (range 10) 1313 | -10/Materials | Discovered new exit (range 16) 1353 | -10/Materials | Core integrity fell below 50% 1936 | -10/Materials | Entered Mines 2028 | -10/Mines | Core integrity fell below 20% 2075 | -10/Mines | Lost 3 parts (1n2w) 2295 | -10/Mines | Destroyed by S-10 Pest with Light Assault Rifle Last Messages --------------- 02014_ S-10 Pest destroyed. 02018_ Med. Laser destroyed. 02020_ Destroyed Flight Unit. 02024_ S-10 Pest destroyed. 02042_ Med. Laser destroyed. 02044_ Lgt. Treads destroyed. 02067_ S-10 Pest destroyed. 02070_ Acquired 14 matter. 02077_ Acquired 6 matter. 02107_ System corrupted: Component data lost. 02114_ R-06 Scavenger collects Flight Unit. 02164_ Acquired 10 matter. 02196_ Searching scrap... 02196_ Found Com. Wheel. 02196_ Found Sml. Matter Pod. 02196_ Found Aluminum Leg. 02196_ Found 30 Matter. 02229_ T-07 Excavator is excavating. 02243_ I3 Q,T7HG3LEHZIJLN9Y 6E 02246_ T-07 Excavator is excavating. Map ----- +----------------------------------------------------+ | | | | | | | | | | | | | | | | | | | | | | | | | | | | | | | | | | | | | ?????????????????????????????????????????? | | ?????????????????????????????????????????? | | ????????????????????#######??????????????? | | ???????????????????## ##?????????##??? | | ???????????????????# #????? ???? | | ?????????????###???# $ s ### ???????? | | ?????????????# ###??# s ???????????? | | ????????????## #????# @#??????????????? | | ????????????# #????## #??????????????? | | ????????????## ##?????# s#??????????????? | | ?????????????# #?????# #??????????????? | | ?????????????# ####### #??????????????? | | ?????????????# #??????????????? | | ????????????## #??????????????? | | ???????????## ###########??????????????? | | ??????????## #????????????????????????? | | ??????????# ##???????????????????????? | | ??????????# ##??????????????????????? | | ??????????## #??????????????????????? | | ???????????## #??????????????????????? | | ???????????## #??????????????????????? | | ????????#### #??????????????????????? | | ???????## #??????????????????????? | | ???????# #??????????????????????? | | ######### #??????????????????????? | | ##?????????????????????? | | #?????????????????????? | | ########## ## #????????????????##??? | | ???????## ##?# ???????????## #??? | | ???????# ##??? ????????## #??? | | ??????## ##????# ???????## #??? | | ????### #??????## ???????# #???? | +----------------------------------------------------+ Best States ------------- Heat Dissipation 25 Energy Generation 10 Energy Capacity 250 Matter Stores 300 Matter Capacity 300 Sight Range 16 Terrain Scan Density 10 Evasion (%) 40 Recoil Reduction 2 Salvage Targeting 1 Item Schematics ----------------- None Robot Schematics ------------------ None Fabricated ------------ Nothing Repaired ---------- Nothing Studied --------- None Alien Tech Used ----------------- None Achievements -------------- None Challenges ------------ None Game ------ Seed MiniSkeletonChargecaster Manual? 0 Play Time 00:10:17 Cumulative 302.7 hours Start 2026.09.20 @ 19:52:26 End 2026.09.20 @ 20:00:58 Sessions 1 Manual Loads 0 Difficulty Rogue Special Mode None Game No. 322 Rogue 322 Adventurer 0 Explorer 0 Win Type - Total 3 Types 3/0/0/0/0/0/0/0/0/0 Lore% 33 Gallery% 58 Achievement% 43 Wizard Run 0 Options --------- Layout 1 ASCII 0 Keyboard 0 Movement Numpad Keybinds 0 Fullscreen 2 Font 24/Smallcaps Map View 50x35 Zoom Use 0% Tactical HUD 1 Map Filters NONE Filters NONE Steam 1 RUN: 3ceab6fd-5fca-415b-9998-5c584ca6c3e4